bitfinex/quotes_ETHUSD_20250215
["timestamp","ask_amount","ask_price","bid_price","bid_amount"]
[1739584802055,4.43481,2729.2,2728.7,3.66461]
[1739584802661,4.43481,2729.2,2728.8,3.66461]
[1739584803065,4.43481,2729.2,2728.7,3.66461]
[1739584803426,0.7707,2729.2,2728.8,3.66459]
[1739584804568,4.43486,2729.2,2728.7,3.66461]
[1739584805932,0.7707,2729.2,2728.7,3.66461]
[1739584806718,4.43484,2729.2,2728.7,3.66461]
[1739584806918,4.43484,2729.2,2728.5,3.66493]
[1739584807220,8.09901,2729.2,2728.6,3.6648]
[1739584807631,4.43484,2729.2,2728.5,3.66493]
[1739584807832,3.6643,2729.1,2728.5,7.32985]
[1739584808029,0.7707,2729.0,2728.5,7.32985]
[1739584808358,0.7707,2729.0,2728.6,3.66486]
[1739584808931,0.7707,2729.0,2728.7,3.66468]
[1739584809749,0.7707,2729.0,2728.6,3.66486]
[1739584809950,0.7707,2729.0,2728.6,3.66481]
[1739584811931,4.43512,2729.0,2728.5,3.66499]
[1739584812126,3.66449,2728.9,2728.4,6.66509]
[1739584812333,3.66449,2728.9,2728.4,3.66509]
[1739584812841,0.7785,2728.8,2728.2,4.45213]
[1739584813055,4.44317,2728.8,2728.4,4.5637]
[1739584814849,0.7785,2728.6,2728.4,4.5637]
[1739584815739,4.44342,2728.6,2728.4,4.5637]
[1739584816054,4.44351,2728.5,2728.4,4.5637]
[1739584823957,0.7785,2728.5,2728.4,4.5637]
[1739584824588,4.44351,2728.5,2728.4,4.5637]
[1739584835203,0.7785,2728.5,2728.4,4.5637]
[1739584835374,4.44351,2728.5,2728.4,4.5637]
[1739584838319,5.32,2728.6,2728.4,4.5637]
[1739584838602,3.66441,2729.0,2728.4,9.5056]
[1739584839671,3.66455,2728.9,2728.4,9.5056]
[1739584839872,3.66463,2728.8,2728.4,5.84047]
[1739584840072,7.32933,2728.8,2728.4,5.84047]
[1739584840801,3.66463,2728.8,2728.4,5.3841]
[1739584841011,4.44461,2728.5,2728.4,4.5637]
[1739584842204,3.66488,2728.6,2728.4,4.5637]
[1739584842373,7.32986,2728.6,2728.4,4.5637]
[1739584842906,3.66488,2728.6,2728.4,4.5637]
[1739584843513,3.66469,2728.8,2728.5,0.7875]
[1739584844035,3.66436,2729.0,2728.5,5.354117]
[1739584844306,6.0406976,2729.1,2728.5,4.566527]
[1739584844487,6.0406976,2729.1,2728.6,4.45229]
[1739584845876,3.66388,2729.4,2728.9,0.7875]
[1739584846507,3.66388,2729.4,2728.9,1.599173]
[1739584846709,15.56916,2729.6,2728.9,1.599173]
[1739584846710,14.78956,2729.6,2728.9,1.599173]
[1739584846876,3.66368,2729.5,2728.9,4.4519]
[1739584847480,14.78956,2729.6,2728.9,4.4519]
[1739584847812,3.66381,2729.4,2728.9,4.4519]
[1739584848911,3.66381,2729.4,2728.9,0.7875]
[1739584849293,7.32771,2729.4,2728.9,0.7875]
[1739584849503,3.66395,2729.3,2728.9,0.7875]
[1739584849702,3.66417,2729.2,2728.5,4.566597]
[1739584849888,3.6645,2728.9,2728.4,4.5637]
[1739584850089,3.6647,2728.8,2728.4,5.3512]
[1739584850302,4.44402,2729.0,2728.4,9.01633]
[1739584850898,3.66448,2728.9,2728.4,9.01633]
[1739584851093,3.66448,2728.9,2728.4,5.3512]
[1739584851612,3.66482,2728.7,2728.4,4.5637]
[1739584851822,3.66489,2728.6,2728.4,4.5637]
[1739584852006,3.66501,2728.5,2728.4,4.5637]
[1739584854111,3.66488,2728.6,2728.4,4.5637]
[1739584856128,3.66476,2728.7,2728.4,4.5637]
[1739584858024,5.583,2728.8,2728.4,4.5637]
[1739584858025,3.66488,2728.6,2728.4,4.5637]
[1739584858429,5.583,2728.8,2728.4,4.5637]
[1739584858796,3.66483,2728.7,2728.4,4.5637]
[1739584859139,3.66491,2728.6,2728.4,4.5637]
[1739584859794,3.66501,2728.5,2728.4,4.5637]
[1739584860224,0.8134,2728.6,2728.4,4.5637]
[1739584860431,3.66492,2728.6,2728.4,4.5637]
[1739584860831,5.583,2728.8,2728.4,4.5637]
[1739584861006,9.24762,2728.8,2728.4,4.5637]
[1739584861496,3.66477,2728.7,2728.4,4.5637]
[1739584861799,3.66488,2728.6,2728.4,4.5637]
[1739584862195,3.66477,2728.7,2728.4,4.5637]
[1739584862432,5.32,2728.8,2728.4,4.5637]
[1739584862599,5.32,2728.8,2728.5,5.274976]
[1739584863601,5.32,2728.8,2728.5,0.7871]
[1739584864902,8.98468,2728.8,2728.4,4.5637]
[1739584865097,3.66491,2728.6,2728.4,4.5637]
[1739584865322,3.66501,2728.5,2728.4,4.5637]
[1739584868156,3.66491,2728.6,2728.4,4.5637]
[1739584868355,8.98469,2728.8,2728.5,0.7871]
[1739584868656,5.32,2728.8,2728.5,4.45207]
[1739584869527,5.32,2728.8,2728.5,8.11699]
[1739584869724,0.74877402,2729.2,2728.6,0.8125]
[1739584869929,3.66398,2729.3,2728.9,0.8125]
[1739584870128,3.66412,2729.2,2728.9,0.8125]
[1739584870347,8.98387,2729.4,2728.9,0.8125]
[1739584870763,3.66404,2729.3,2728.9,0.8125]
[1739584871362,3.66408,2729.2,2728.9,0.8125]
[1739584872046,12.64777,2729.4,2728.9,0.8125]
[1739584872252,8.98387,2729.4,2728.9,0.8125]
[1739584872440,3.66394,2729.3,2728.9,0.8125]
[1739584872640,3.66408,2729.2,2728.9,0.8125]
[1739584873165,8.98387,2729.4,2728.9,0.8125]
[1739584873759,5.32,2729.4,2728.9,5.291027]
[1739584873965,5.32,2729.4,2729.2,0.8125]
[1739584874286,5.806,2729.6,2729.2,0.8125]
[1739584875126,5.806,2729.6,2729.2,4.47657]
[1739584875359,5.806,2729.6,2729.3,3.66386]
[1739584875574,5.806,2729.6,2729.4,0.447636]
[1739584876263,4.39834183,2729.8,2729.4,0.447636]
[1739584876506,0.73506183,2729.8,2729.3,3.66392]
[1739584876627,4.39834183,2729.8,2729.3,3.66392]
[1739584876984,3.66342,2729.7,2729.2,0.8125]
[1739584877552,3.66342,2729.7,2729.2,4.47654]
[1739584878465,0.73506183,2729.8,2729.3,3.66392]
[1739584878777,0.73506183,2729.8,2729.4,0.447642]
[1739584879969,0.73506183,2729.8,2729.5,0.8125]
[1739584882863,0.73506183,2729.8,2729.5,4.47615]
[1739584884078,0.73506183,2729.8,2729.6,3.66353]
[1739584884986,0.73506183,2729.8,2729.5,4.47615]
[1739584885159,0.73506183,2729.8,2729.5,5.290157]
[1739584885682,0.73506183,2729.8,2729.5,1.626507]
[1739584886559,0.73506183,2729.8,2729.5,5.290177]
[1739584886945,0.73506183,2729.8,2729.5,5.290097]
[1739584887342,0.73506183,2729.8,2729.6,3.66343]
[1739584887558,0.73506183,2729.8,2729.7,0.8953527]
[1739584887780,0.73506183,2729.8,2729.7,1.6731527]
[1739584888163,0.73506183,2729.8,2729.7,4.4412]
[1739584888569,0.73506183,2729.8,2729.7,0.7778]
[1739584888891,0.73506183,2729.8,2729.7,4.4412]
[1739584889554,3.66246,2730.4,2730.1,0.7778]
[1739584890652,4.41168337,2730.4,2730.1,0.7778]
[1739584892196,0.74922337,2730.4,2730.1,0.7778]
[1739584892371,9.78821,2730.6,2730.1,0.7778]
[1739584892579,8.98221,2730.6,2730.1,1.221872]
[1739584893258,0.55,2730.8,2730.2,0.7778]
[1739584893453,0.55,2730.8,2730.6,0.7778]
[1739584897467,0.55,2730.8,2730.0,3.0]
[1739584897672,4.21202,2730.8,2730.2,0.7778]
[1739584897900,0.55,2730.8,2730.3,3.66256]
[1739584898200,0.55,2730.8,2730.0,3.0]
[1739584898201,0.55,2730.8,2730.6,3.66219]
[1739584898387,0.55,2730.8,2730.5,4.44003]
[1739584898897,0.55,2730.8,2730.5,0.7778]
[1739584899098,0.55,2730.8,2730.7,0.7778]
[1739584899400,0.55,2730.8,2730.7,1.221799]
[1739584899895,0.55,2730.8,2730.7,0.7778]
[1739584900297,3.66209,2730.7,2730.2,3.7608]
[1739584900488,3.66221,2730.6,2730.2,0.7608]
[1739584900691,3.66263,2730.3,2729.8,0.7608]
[1739584900886,0.7546,2730.4,2729.9,0.442413]
[1739584901191,3.6631,2730.0,2729.4,0.7608]
[1739584901387,3.6631,2730.0,2729.4,3.7608]
[1739584902098,3.66291,2730.1,2729.4,7.42459]
[1739584902300,3.66314,2729.9,2729.4,0.7608]
[1739584902486,3.66343,2729.7,2729.4,0.7608]
[1739584903283,3.66343,2729.7,2729.4,1.13688]
[1739584904179,4.41774,2729.9,2729.4,1.13688]
[1739584905303,8.08099,2729.9,2729.4,1.13688]
[1739584905500,4.41774,2729.9,2729.4,1.13688]
[1739584906895,3.66328,2729.8,2729.4,1.13688]
[1739584907396,4.41774,2729.9,2729.4,1.13688]
[1739584907718,3.66336,2729.8,2729.4,1.13688]
[1739584907917,3.66341,2729.7,2729.4,1.13688]
[1739584908323,4.41774,2729.9,2729.4,1.13688]
[1739584908691,8.08098,2729.9,2729.4,1.13688]
[1739584909032,4.41774,2729.9,2729.4,1.13688]
[1739584909212,3.66328,2729.8,2729.4,1.13688]
[1739584910713,8.08096,2729.9,2729.4,1.13688]
[1739584911021,3.66332,2729.8,2729.4,1.13688]
[1739584913721,7.3269,2729.7,2729.4,0.7608]
[1739584913926,3.66341,2729.7,2729.4,0.7608]
[1739584914590,3.66361,2729.6,2729.4,0.7608]
[1739584914891,3.66341,2729.7,2729.4,0.7608]
[1739584915093,3.66354,2729.6,2729.4,0.7608]
[1739584916911,3.66367,2729.5,2729.4,0.7608]
[1739584917429,3.66388,2729.4,2729.2,0.7903]
[1739584919635,3.6636,2729.6,2729.2,0.7903]
[1739584919926,7.32726,2729.6,2729.2,0.7903]
[1739584920116,3.66369,2729.5,2729.2,0.7903]
[1739584920522,3.66382,2729.4,2729.2,0.7903]
[1739584921441,7.32726,2729.6,2729.2,0.7903]
[1739584921598,3.66375,2729.5,2729.2,0.7903]
[1739584921997,6.1346,2729.8,2729.2,0.7903]
[1739584922199,3.66392,2729.4,2729.2,0.7903]
[1739584924129,3.6639,2729.4,2729.0,0.7903]
[1739584926227,3.66411,2729.2,2729.0,0.7903]
[1739584926426,3.66411,2729.2,2728.8,0.7903]
[1739584926427,3.66421,2729.1,2728.8,0.7903]
[1739584927435,3.66411,2729.2,2728.8,0.7903]
[1739584928024,7.32829,2729.2,2728.8,0.7903]
[1739584928529,3.66411,2729.2,2728.8,0.7903]
[1739584928701,7.32826,2729.2,2728.8,0.7903]
[1739584929055,3.66411,2729.2,2728.8,0.7903]
[1739584929232,3.66411,2729.2,2728.8,1.42210482]
[1739584929432,3.66411,2729.2,2728.8,1.38546175]
[1739584931002,7.32829,2729.2,2728.8,1.38546175]
[1739584932136,3.66411,2729.2,2728.8,1.38546175]
[1739584932335,4.4785,2729.4,2728.8,1.38546175]
[1739584932541,3.66403,2729.3,2728.8,1.38546175]
[1739584932703,3.66409,2729.2,2728.8,1.38546175]
[1739584933543,3.66422,2729.1,2728.8,1.38546175]
[1739584933912,3.66409,2729.2,2728.8,1.38546175]
[1739584934445,3.66385,2729.4,2728.8,5.05000175]
[1739584934911,3.66385,2729.4,2728.9,4.53593018]
[1739584935429,3.66385,2729.4,2728.9,0.87147018]
[1739584935630,3.66394,2729.3,2728.9,0.87147018]
[1739584936624,7.32776,2729.4,2728.9,0.87147018]
[1739584937666,3.66397,2729.3,2728.9,0.87147018]
[1739584938471,8.98368,2729.5,2728.9,0.87147018]
[1739584938659,3.66385,2729.4,2728.9,4.53594018]
[1739584939749,5.32,2729.5,2729.3,3.66384]
[1739584940060,5.32,2729.5,2729.4,0.7814]
[1739584940492,5.32,2729.5,2729.4,4.4452]
[1739584940655,4.41390579,2730.1,2729.4,7.4452]
[1739584940656,3.66289,2730.1,2729.4,7.4452]
[1739584940838,3.66289,2730.1,2729.6,4.44492]
[1739584941040,3.66262,2730.3,2729.7,3.70003099]
[1739584941358,3.66262,2730.3,2729.8,0.7814]
[1739584941989,3.66262,2730.3,2729.8,4.44464]
[1739584942144,3.66262,2730.3,2729.8,1.592196]
[1739584942546,3.66262,2730.3,2729.5,4.40815]
[1739584942547,6.0932,2730.4,2729.5,4.40815]
[1739584942741,6.0932,2730.4,2729.4,0.7814]
[1739584942742,0.7732,2730.0,2729.4,0.7814]
[1739584942976,3.6633,2729.8,2729.2,0.7814]
[1739584943189,3.66362,2729.6,2729.2,0.7814]
[1739584943576,3.66375,2729.5,2729.0,1.37354019]
[1739584943898,3.66385,2729.4,2729.0,1.37354019]
[1739584948446,3.66385,2729.4,2729.0,0.7814]
[1739584951599,3.66397,2729.3,2729.0,0.7814]
[1739584953003,3.6637,2729.5,2729.0,0.7814]
[1739584953350,0.7732,2729.6,2729.0,0.7814]
[1739584953555,3.66401,2729.3,2729.0,0.7814]
[1739584953758,5.32,2729.5,2729.0,0.7814]
[1739584954000,3.66415,2729.2,2728.8,0.7958]
[1739584954399,7.32833,2729.2,2728.8,0.7958]
[1739584954600,3.66415,2729.2,2728.8,0.7958]
[1739584955607,7.32834,2729.2,2728.8,0.7958]
[1739584956195,3.66415,2729.2,2728.8,0.7958]
[1739584957095,7.3283,2729.2,2728.8,0.7958]
[1739584957298,7.32832,2729.2,2728.8,0.7958]
[1739584957912,3.66455,2728.9,2728.5,0.7958]
[1739584958213,3.66474,2728.7,2728.4,4.5637]
[1739584958375,0.8042,2728.8,2728.4,4.5637]
[1739584958709,4.46886,2728.8,2728.4,4.5637]
[1739584959913,3.66482,2728.7,2728.4,4.5637]
[1739584962786,3.66498,2728.6,2728.4,4.5637]
[1739584963687,3.66482,2728.7,2728.4,4.5637]
[1739584963893,3.66501,2728.5,2728.4,4.5637]
[1739584964132,3.66482,2728.7,2728.4,4.5637]
[1739584964414,3.66496,2728.6,2728.4,4.5637]
[1739584964802,3.66501,2728.5,2728.4,4.5637]
[1739584965407,3.66491,2728.6,2728.4,4.5637]
[1739584965915,3.66501,2728.5,2728.4,4.5637]
[1739584966752,4.47991,2728.5,2728.4,4.5637]
[1739584967918,0.8149,2728.5,2728.4,4.5637]
[1739584968505,4.47991,2728.5,2728.4,4.5637]
[1739584969045,3.66495,2728.6,2728.4,4.5637]
[1739584970018,0.8149,2728.7,2728.4,4.5637]
[1739584970222,4.47968,2728.7,2728.4,4.5637]
[1739584970626,3.66496,2728.6,2728.4,4.5637]
[1739584972932,5.32,2728.8,2728.4,4.5637]
[1739584973126,5.32,2728.8,2728.5,4.2]
[1739584973298,3.66448,2728.9,2728.4,4.5637]
[1739584974733,3.66448,2728.9,2728.4,8.22884]
[1739584975694,3.66436,2729.0,2728.4,8.22884]
[1739584975900,3.66436,2729.0,2728.4,11.89382]
[1739584976215,4.47912,2729.1,2728.5,3.66501]
[1739584976619,8.14343,2729.1,2728.6,0.8156]
[1739584976936,3.66437,2729.0,2728.6,0.8156]
[1739584977823,3.6645,2728.9,2728.6,0.8156]
[1739584978029,3.6647,2728.8,2728.4,5.3793]
[1739584978230,7.32944,2728.8,2728.4,5.3793]
[1739584978432,4.41978,2728.6,2728.4,4.5637]
[1739584978639,3.66501,2728.5,2728.4,4.5637]
[1739584980744,4.4196,2728.8,2728.4,4.5637]
[1739584980916,3.6647,2728.8,2728.5,0.8156]
[1739584981645,4.41932,2729.0,2728.5,0.8156]
[1739584981847,4.39823246,2729.0,2728.5,4.48052]
[1739584982034,7.32835,2729.2,2728.6,3.66487]
[1739584982234,3.66425,2729.1,2728.6,3.66487]
[1739584982818,3.66415,2729.2,2728.7,3.66474]
[1739584983014,4.41886,2729.3,2728.8,0.8156]
[1739584983322,3.66409,2729.2,2728.8,0.8156]
[1739584983747,3.66385,2729.4,2728.8,0.8156]
[1739584983948,3.66395,2729.3,2728.8,4.4802]
[1739584984257,5.32,2729.3,2728.8,4.4802]
[1739584984649,5.32,2729.3,2729.0,3.66422]
[1739584984816,5.32,2729.3,2729.1,0.8156]
[1739584985016,5.32,2729.5,2729.1,0.8156]
[1739584985845,8.98368,2729.5,2729.1,0.8156]
[1739584986228,3.66386,2729.4,2729.1,0.8156]
[1739584986430,3.66386,2729.4,2728.8,3.66453]
[1739584986634,3.66419,2729.2,2728.7,0.8156]
[1739584986834,3.66422,2729.1,2728.7,0.8156]
[1739584987042,3.66419,2729.2,2728.7,0.8156]
[1739584988135,3.66437,2729.0,2728.7,0.8156]
[1739584989027,7.32883,2729.0,2728.7,0.8156]
[1739584990159,8.98437,2729.0,2728.7,0.8156]
[1739584990653,5.32,2729.0,2728.8,3.66453]
[1739584990859,5.32,2729.0,2728.9,0.8156]
[1739584993646,5.32,2729.0,2728.9,4.48008]
[1739584995872,3.6638,2729.4,2728.9,4.48008]
[1739584996638,3.6638,2729.4,2729.3,0.1]
[1739584999075,5.32,2729.5,2729.3,0.1]
[1739584999376,8.98371,2729.5,2729.3,0.1]
[1739585000173,4.38584708,2729.7,2729.4,0.7624]
[1739585000473,7.3261,2730.0,2729.4,4.4261]
[1739585000677,8.98301,2730.0,2729.4,0.7624]
[1739585000846,3.66334,2729.8,2729.4,0.7624]
[1739585001172,7.32671,2729.8,2729.4,0.7624]
[1739585001373,3.66351,2729.7,2729.4,0.7624]
[1739585001693,3.66356,2729.6,2729.3,0.1]
[1739585002199,3.66351,2729.7,2729.3,0.1]
[1739585004393,3.66363,2729.6,2729.3,0.1]
[1739585004544,3.66377,2729.5,2729.3,0.1]
[1739585004746,8.98377,2729.5,2729.3,0.1]
[1739585005562,3.6638,2729.4,2729.3,0.1]
[1739585005894,4.484,2729.4,2729.3,0.1]
[1739585009590,3.6638,2729.4,2729.3,0.1]
[1739585009786,8.98368,2729.5,2729.3,0.1]
[1739585010561,5.32,2729.5,2729.3,0.1]
[1739585010907,3.66345,2729.7,2729.3,0.1]
[1739585011254,3.66354,2729.6,2729.3,0.1]
[1739585011465,3.66345,2729.7,2729.3,0.1]
[1739585014398,7.32695,2729.7,2729.3,0.1]
[1739585014570,3.66345,2729.7,2729.3,0.1]
[1739585015785,6.05717149,2729.8,2729.3,0.1]
[1739585015986,9.72056149,2729.8,2729.3,3.76391]
[1739585016329,3.66344,2729.7,2729.3,0.1]
[1739585017100,7.32695,2729.7,2729.3,0.1]
[1739585017420,3.66344,2729.7,2729.3,0.1]
[1739585019009,9.72045149,2729.8,2729.4,0.8204]
[1739585019208,6.05717149,2729.8,2729.4,0.8204]
[1739585019523,5.32,2729.8,2729.4,0.8204]
[1739585020120,5.32,2729.9,2729.5,4.46477]
[1739585020339,5.32,2729.9,2729.8,0.8012]
[1739585020836,5.32,2729.9,2729.8,4.46447]
[1739585021506,5.804,2730.3,2730.0,3.66298]
[1739585021708,5.804,2730.3,2730.1,0.8012]
[1739585022202,5.32,2730.4,2730.1,0.8012]
[1739585024383,8.98247,2730.4,2730.1,0.8012]
[1739585027229,3.66267,2730.3,2730.1,0.8012]
[1739585027433,3.66276,2730.2,2729.8,0.8012]
[1739585027588,3.66276,2730.2,2729.8,1.247648]
[1739585027791,3.66288,2730.1,2729.8,0.8012]
[1739585028649,3.66276,2730.2,2729.8,0.8012]
[1739585029521,3.66262,2730.3,2729.8,4.46446]
[1739585030537,3.66234,2730.5,2729.8,4.46446]
[1739585030749,3.66234,2730.5,2729.9,0.8012]
[1739585030953,3.66234,2730.5,2730.0,3.66299]
[1739585032771,3.66247,2730.4,2729.9,5.210766]
[1739585033536,3.66234,2730.5,2729.9,1.547646]
[1739585033852,3.66212,2730.7,2730.1,0.8012]
[1739585034057,3.66212,2730.7,2730.1,4.46403]
[1739585034238,5.32,2730.7,2730.3,3.66248]
[1739585034427,5.32,2730.7,2730.4,3.66237]
[1739585034631,0.55,2730.8,2730.5,4.45181]
[1739585034949,0.55,2730.8,2730.5,0.7895]
[1739585035124,0.55,2730.8,2730.7,3.66206]
[1739585035331,0.55,2730.8,2730.7,4.45156]
[1739585035741,0.55,2730.8,2730.7,0.7895]
[1739585037562,0.55,2730.8,2730.7,1.60089]
[1739585037737,0.55,2730.8,2730.7,5.26295]
[1739585039170,0.55,2730.8,2730.7,8.26295]
[1739585045160,0.55,2731.6,2731.5,6.66099]
[1739585045360,0.55,2731.6,2731.5,8.144089]
[1739585046058,4.49304538,2732.6,2732.1,4.47718]
[1739585046059,0.00099538,2732.6,2732.1,4.47718]
[1739585046265,0.00099538,2732.6,2732.1,7.47718]
[1739585047877,0.00099538,2732.6,2732.1,3.817]
[1739585048076,3.66063538,2732.6,2732.1,3.817]
[1739585048278,3.66063538,2732.6,2732.1,0.817]
[1739585048506,3.66063538,2732.6,2731.8,0.817]
[1739585048654,3.65992,2732.3,2731.8,1.264772]
[1739585048859,3.65992,2732.3,2731.8,4.264772]
[1739585049161,0.8324,2732.5,2731.8,7.925332]
[1739585049484,3.66055538,2732.6,2731.8,7.925332]
[1739585049882,3.65969,2732.5,2731.8,7.925332]
[1739585050469,3.66055538,2732.6,2731.8,4.264772]
[1739585050681,3.66055538,2732.6,2731.9,3.66044]
[1739585050890,3.65965,2732.5,2732.0,0.83277894]
[1739585051084,0.00099538,2732.6,2732.1,3.66018]
[1739585051281,0.00099538,2732.6,2732.1,4.47718]
[1739585052687,0.00099538,2732.6,2732.1,4.51377042]
[1739585053390,0.00099538,2732.6,2732.1,4.51376809]
[1739585053582,0.00099538,2732.6,2732.1,9.09512523]
[1739585053905,0.00099538,2732.6,2732.1,9.05853714]
[1739585054072,0.00099538,2732.6,2732.1,11.60853714]
[1739585054606,8.9e-06,2732.2,2732.1,12.12650755]
[1739585055967,4.28e-06,2732.6,2732.5,3.65965]
[1739585056161,4.28e-06,2732.6,2732.5,8.24517597]
[1739585056366,4.28e-06,2732.6,2732.5,9.27656441]
[1739585058306,0.005,2733.4,2732.8,0.817]
[1739585058477,0.005,2733.4,2733.3,7.47558]
[1739585058682,0.005,2733.4,2733.3,8.589009]
[1739585059613,1e-05,2733.4,2733.3,10.689009]
[1739585059926,3.8021989,2734.9,2734.2,3.65724]
[1739585060069,0.8324,2734.8,2734.3,3.6572]
[1739585060267,0.8324,2734.8,2734.5,3.0]
[1739585060490,0.8324,2734.8,2734.4,3.6571]
[1739585060829,0.8324,2734.8,2734.2,3.65724]
[1739585060830,0.8324,2734.8,2734.3,3.65722]
[1739585061036,0.8324,2734.8,2734.4,3.0]
[1739585062380,0.8324,2734.8,2734.4,3.65708]
[1739585062569,0.8324,2734.8,2734.4,1.03144]
[1739585062776,0.8324,2734.8,2734.3,3.0]
[1739585062979,0.8324,2734.8,2734.0,3.6576]
[1739585063178,3.65679,2734.7,2733.8,3.65784]
[1739585063494,0.8324,2734.8,2733.8,3.65784]
[1739585063495,3.65721,2734.4,2733.8,3.0]
[1739585063669,7.31443,2734.4,2733.8,3.0]
[1739585063871,3.65721,2734.4,2733.8,3.0]
[1739585064438,3.65747,2734.2,2733.8,3.0]
[1739585064609,0.7578,2734.3,2733.2,3.6587]
[1739585064773,0.731411,2734.4,2733.2,3.6587]
[1739585064774,3.65789,2733.9,2733.2,3.6587]
[1739585064975,4.41573,2733.8,2733.2,3.6587]
[1739585065174,3.65814,2733.7,2733.0,3.65889]
[1739585065418,4.41571,2733.8,2733.2,3.65861]
[1739585065568,3.65812,2733.7,2733.0,3.65889]
[1739585065783,3.65829,2733.6,2733.0,3.65889]
[1739585066217,3.65812,2733.7,2733.0,3.65889]
[1739585066718,3.6582,2733.6,2733.0,3.65889]
[1739585066894,3.65832,2733.5,2733.0,4.771028]
[1739585067489,3.65822,2733.6,2733.0,4.771028]
[1739585068104,3.65812,2733.7,2733.1,3.65884]
[1739585068784,7.31627,2733.7,2733.0,4.771028]
[1739585069105,3.65812,2733.7,2733.0,4.771028]
[1739585069310,3.65812,2733.7,2733.1,3.7771028]
[1739585069488,3.65804,2733.7,2733.1,0.7771028]
[1739585069689,3.65841,2733.5,2733.1,0.7771028]
[1739585069890,3.65841,2733.5,2732.9,6.65905]
[1739585070116,7.31683,2733.5,2732.9,3.0]
[1739585070429,3.65845,2733.4,2732.8,0.8033]
[1739585070609,3.65885,2733.1,2732.6,3.65944]
[1739585070788,0.8123,2733.2,2732.7,6.65926]
[1739585070988,0.8123,2733.2,2732.8,1.03187]
[1739585071724,0.8123,2733.9,2732.8,1.03187]
[1739585072025,3.65851,2733.4,2732.7,3.65932]
[1739585072226,3.65851,2733.4,2732.5,0.8033]
[1739585072227,3.65885,2733.1,2732.5,4.46286]
[1739585072925,4.47089,2733.3,2732.7,3.0]
[1739585073228,0.8123,2732.9,2731.3,8.75]
[1739585073528,3.0,2733.4,2731.1,2.8033]
[1739585073529,0.8123,2732.4,2731.1,2.8033]
[1739585073726,0.8123,2732.8,2732.1,3.66007]
[1739585074099,4.47166,2732.8,2732.1,3.66014]
[1739585074299,0.27,2733.1,2732.1,3.66014]
[1739585074300,0.8123,2733.1,2732.3,3.65981]
[1739585074500,0.8123,2733.1,2732.5,3.0]
[1739585074501,4.47117,2733.1,2732.5,3.0]
[1739585075426,0.8123,2733.1,2732.6,3.65948]
[1739585075627,0.8123,2733.4,2732.7,6.65935]
[1739585075805,4.47076,2733.4,2732.7,6.65935]
[1739585076328,0.8123,2733.4,2732.9,3.0]
[1739585076732,4.47077,2733.4,2732.6,7.46277]
[1739585076939,4.47077,2733.4,2732.7,1.11224]
[1739585077227,0.8123,2733.4,2732.8,3.0]
[1739585077433,4.47075,2733.4,2732.8,3.0]
[1739585077730,0.8123,2732.9,2731.6,3.66075]
[1739585077891,0.8123,2732.3,2731.6,3.66084]
[1739585078090,0.8123,2732.3,2731.7,0.366084]
[1739585078734,3.6602,2732.1,2731.4,3.0]
[1739585079500,4.47223,2732.3,2731.4,3.0]
[1739585079700,0.8123,2732.3,2731.4,3.0]
[1739585079921,3.66005,2732.2,2731.3,3.66119]
[1739585080139,3.66034,2732.0,2731.4,0.446449]
[1739585080642,3.66034,2732.0,2731.4,3.446449]
[1739585080847,3.66046,2731.9,2731.4,3.446449]
[1739585081557,3.66062,2731.8,2731.4,0.446449]
[1739585081848,3.66128,2731.3,2730.6,0.8321]
[1739585082045,3.66155,2731.1,2730.6,0.8321]
[1739585082224,3.66112,2731.4,2730.1,4.49494]
[1739585082538,3.66208,2730.7,2730.1,0.8321]
[1739585082741,3.66222,2730.6,2730.1,0.8321]
[1739585083044,3.66233,2730.5,2729.8,3.66322]
[1739585083237,3.66233,2730.5,2730.1,0.74738721]
[1739585083821,3.66208,2730.7,2730.1,0.74738721]
[1739585084006,3.66208,2730.7,2730.1,3.74738721]
[1739585084408,3.6622,2730.6,2730.1,0.74738721]
[1739585085950,3.6622,2730.6,2729.9,6.66302]
[1739585086111,3.6622,2730.6,2730.0,1.032627]
[1739585086457,0.8077,2730.8,2730.4,3.0]
[1739585086663,4.46968,2730.8,2730.3,3.0]
[1739585087160,4.46968,2730.8,2730.1,6.66285]
[1739585087450,0.8077,2730.8,2730.3,3.0]
[1739585087607,0.8077,2730.8,2730.3,3.966272]
[1739585087954,3.66219,2730.7,2730.3,0.966272]
[1739585088161,3.66219,2730.7,2730.1,3.66286]
[1739585088323,3.66219,2730.7,2730.2,3.0]
[1739585088924,3.66255,2730.4,2730.0,1.032627]
[1739585089241,3.66228,2730.6,2730.0,3.0]
[1739585089447,3.66247,2730.4,2729.7,7.49543]
[1739585090050,3.66247,2730.4,2729.9,3.0]
[1739585090350,3.66247,2730.4,2729.9,6.66311]
[1739585090525,3.66247,2730.4,2729.9,7.778958]
[1739585091074,3.66224,2730.6,2729.9,7.778958]
[1739585091878,3.66245,2730.5,2729.9,7.778958]
[1739585092473,3.66224,2730.6,2729.9,7.778958]
[1739585092775,3.66241,2730.5,2729.9,7.778958]
[1739585093079,3.66224,2730.6,2729.9,7.778958]
[1739585093298,3.66224,2730.6,2729.9,7.778888]
[1739585094502,3.66247,2730.4,2729.9,4.778888]
[1739585094676,3.66273,2730.2,2729.7,0.8321]